[Event "Titled Tuesday Blitz June 20 Late 2023"]
[White "Golubev, Mikhail"]
[Black "Ionescu, Mihai"]
[WhiteFideId "14100983"]
[BlackFideId "1202499"]
[WhiteElo "2374"]
[BlackElo "2279"]
[Result "0-1"]
[Round "10"]
[TimeControl "180+2"]
[Date "2023.06.20"]
[WhiteClock "0:00:00"]
[BlackClock "0:00:26"]
[Board "66"]

1. e4 {[%clk 0:02:56]}  e6 {[%clk 0:02:58]} 2. d4 {[%clk 0:02:54]}  d5 {[%clk 0:02:58]} 3. Nc3 {[%clk 0:02:55]}  Nf6 {[%clk 0:02:58]} 4. Bg5 {[%clk 0:02:51]}  dxe4 {[%clk 0:02:58]} 5. Nxe4 {[%clk 0:02:50]}  Nbd7 {[%clk 0:02:58]} 6. Nxf6+ {[%clk 0:02:45]}  Nxf6 {[%clk 0:02:57]} 7. Bd3 {[%clk 0:02:45]}  Bd6 {[%clk 0:02:56]} 8. Qe2 {[%clk 0:02:39]}  Bd7 {[%clk 0:02:47]} 9. O-O-O {[%clk 0:02:36]}  Bc6 {[%clk 0:02:45]} 10. Nf3 {[%clk 0:02:36]}  Be7 {[%clk 0:02:38]} 11. Ne5 {[%clk 0:02:33]}  Bxg2 {[%clk 0:02:28]} 12. Rhg1 {[%clk 0:02:32]}  Bc6 {[%clk 0:02:24]} 13. Be3 {[%clk 0:01:57]}  g6 {[%clk 0:02:20]} 14. Nxc6 {[%clk 0:01:53]}  bxc6 {[%clk 0:02:20]} 15. c4 {[%clk 0:01:54]}  Qd6 {[%clk 0:02:08]} 16. Qf3 {[%clk 0:01:47]}  Rb8 {[%clk 0:02:02]} 17. Rd2 {[%clk 0:01:42]}  O-O {[%clk 0:01:53]} 18. h4 {[%clk 0:01:41]}  c5 {[%clk 0:01:48]} 19. dxc5 {[%clk 0:01:38]}  Qe5 {[%clk 0:01:46]} 20. h5 {[%clk 0:01:33]}  Rfd8 {[%clk 0:01:39]} 21. Bg5 {[%clk 0:00:19]}  Rd4 {[%clk 0:00:31]} 22. hxg6 {[%clk 0:00:18]}  hxg6 {[%clk 0:00:30]} 23. Qh3 {[%clk 0:00:17]}  Rxd3 {[%clk 0:00:27]} 24. Qxd3 {[%clk 0:00:16]}  Qxc5 {[%clk 0:00:25]} 25. Be3 {[%clk 0:00:15]}  Qf5 {[%clk 0:00:25]} 26. Qxf5 {[%clk 0:00:14]}  exf5 {[%clk 0:00:25]} 27. Bf4 {[%clk 0:00:13]}  Bb4 {[%clk 0:00:25]} 28. Rc2 {[%clk 0:00:13]}  Ne4 {[%clk 0:00:25]} 29. Rd1 {[%clk 0:00:13]}  Rc8 {[%clk 0:00:25]} 30. f3 {[%clk 0:00:13]}  Nf6 {[%clk 0:00:24]} 31. c5 {[%clk 0:00:13]}  c6 {[%clk 0:00:23]} 32. a3 {[%clk 0:00:13]}  Ba5 {[%clk 0:00:24]} 33. b4 {[%clk 0:00:13]}  Bc7 {[%clk 0:00:24]} 34. Bg5 {[%clk 0:00:12]}  Nd5 {[%clk 0:00:23]} 35. Rcd2 {[%clk 0:00:10]}  f4 {[%clk 0:00:24]} 36. Kc2 {[%clk 0:00:10]}  Be5 {[%clk 0:00:24]} 37. Rxd5 {[%clk 0:00:09]}  cxd5 {[%clk 0:00:23]} 38. Rxd5 {[%clk 0:00:10]}  f6 {[%clk 0:00:24]} 39. Bh4 {[%clk 0:00:09]}  g5 {[%clk 0:00:24]} 40. Be1 {[%clk 0:00:09]}  Kf7 {[%clk 0:00:25]} 41. Rd7+ {[%clk 0:00:05]}  Ke6 {[%clk 0:00:25]} 42. Rxa7 {[%clk 0:00:06]}  f5 {[%clk 0:00:25]} 43. Bc3 {[%clk 0:00:05]}  g4 {[%clk 0:00:25]} 44. Bxe5 {[%clk 0:00:04]}  Kxe5 {[%clk 0:00:25]} 45. Re7+ {[%clk 0:00:04]}  Kd4 {[%clk 0:00:25]} 46. Rf7 {[%clk 0:00:04]}  gxf3 {[%clk 0:00:25]} 47. Rxf5 {[%clk 0:00:04]}  Ke4 {[%clk 0:00:25]} 48. Rh5 {[%clk 0:00:02]}  f2 {[%clk 0:00:25]} 49. Rh1 {[%clk 0:00:02]}  Kf3 {[%clk 0:00:25]} 50. Kc3 {[%clk 0:00:02]}  Kg2 {[%clk 0:00:25]} 51. Rd1 {[%clk 0:00:01]}  f1=Q {[%clk 0:00:25]} 52. Rxf1 {[%clk 0:00:02]}  Kxf1 {[%clk 0:00:26]} 53. Kd4 {[%clk 0:00:00]}  f3 {[%clk 0:00:26]} 0-1


[Site "https://www.chess.com"]

[Event "Titled Tuesday Blitz June 20 Late 2023"]
[White "Vlassov, Nikolai"]
[Black "Kujawski, Adam"]
[WhiteFideId "4103360"]
[BlackFideId "1100920"]
[WhiteElo "2324"]
[BlackElo "2054"]
[Result "0-1"]
[Round "10"]
[TimeControl "180+2"]
[Date "2023.06.20"]
[WhiteClock "0:00:00"]
[BlackClock "0:00:01"]
[Board "68"]

1. e4 {[%clk 0:02:25]}  e5 {[%clk 0:02:58]} 2. Bc4 {[%clk 0:02:24]}  Nf6 {[%clk 0:02:57]} 3. d3 {[%clk 0:02:24]}  d5 {[%clk 0:02:57]} 4. exd5 {[%clk 0:02:24]}  Nxd5 {[%clk 0:02:58]} 5. Nf3 {[%clk 0:02:24]}  Nc6 {[%clk 0:02:58]} 6. O-O {[%clk 0:02:24]}  Nb6 {[%clk 0:02:59]} 7. Bb5 {[%clk 0:02:23]}  Bd6 {[%clk 0:02:58]} 8. Re1 {[%clk 0:02:23]}  f6 {[%clk 0:02:58]} 9. d4 {[%clk 0:02:21]}  O-O {[%clk 0:02:57]} 10. Bxc6 {[%clk 0:02:17]}  bxc6 {[%clk 0:02:58]} 11. dxe5 {[%clk 0:02:14]}  fxe5 {[%clk 0:02:59]} 12. Ng5 {[%clk 0:01:51]}  e4 {[%clk 0:02:52]} 13. Nxe4 {[%clk 0:01:45]}  Qh4 {[%clk 0:02:45]} 14. Ng3 {[%clk 0:01:15]}  Rxf2 {[%clk 0:01:29]} 15. Kxf2 {[%clk 0:01:05]}  Qxh2 {[%clk 0:01:09]} 16. Re3 {[%clk 0:01:00]}  Be6 {[%clk 0:00:47]} 17. Nf1 {[%clk 0:00:29]}  Rf8+ {[%clk 0:00:09]} 18. Rf3 {[%clk 0:00:29]}  Qh4+ {[%clk 0:00:06]} 19. g3 {[%clk 0:00:28]}  Bc5+ {[%clk 0:00:05]} 20. Be3 {[%clk 0:00:27]}  Bxe3+ {[%clk 0:00:03]} 21. Kxe3 {[%clk 0:00:27]}  Nd5+ {[%clk 0:00:01]} 22. Kf2 {[%clk 0:00:26]}  Rxf3+ {[%clk 0:00:01]} 23. Qxf3 {[%clk 0:00:26]}  Qd4+ {[%clk 0:00:01]} 24. Kg2 {[%clk 0:00:25]}  Qxb2 {[%clk 0:00:01]} 25. Nbd2 {[%clk 0:00:19]}  Qxa1 {[%clk 0:00:01]} 26. Ne4 {[%clk 0:00:18]}  Nf6 {[%clk 0:00:01]} 27. Nxf6+ {[%clk 0:00:16]}  Qxf6 {[%clk 0:00:02]} 28. Qxf6 {[%clk 0:00:13]}  gxf6 {[%clk 0:00:02]} 29. a3 {[%clk 0:00:13]}  Bd5+ {[%clk 0:00:02]} 30. Kh3 {[%clk 0:00:13]}  Kf7 {[%clk 0:00:03]} 31. Kg4 {[%clk 0:00:13]}  Kg6 {[%clk 0:00:03]} 32. Ne3 {[%clk 0:00:13]}  h5+ {[%clk 0:00:04]} 33. Kf4 {[%clk 0:00:13]}  a5 {[%clk 0:00:04]} 34. Nf5 {[%clk 0:00:12]}  Be6 {[%clk 0:00:04]} 35. Ne7+ {[%clk 0:00:12]}  Kf7 {[%clk 0:00:03]} 36. Nxc6 {[%clk 0:00:12]}  Bd5 {[%clk 0:00:04]} 37. Nxa5 {[%clk 0:00:11]}  Ke6 {[%clk 0:00:04]} 38. c4 {[%clk 0:00:11]}  Ba8 {[%clk 0:00:03]} 39. Nb3 {[%clk 0:00:11]}  Kd6 {[%clk 0:00:03]} 40. Kf5 {[%clk 0:00:09]}  Bf3 {[%clk 0:00:01]} 41. Kxf6 {[%clk 0:00:09]}  Bd1 {[%clk 0:00:01]} 42. Nd2 {[%clk 0:00:08]}  Kc5 {[%clk 0:00:02]} 43. Ke5 {[%clk 0:00:06]}  Be2 {[%clk 0:00:01]} 44. a4 {[%clk 0:00:01]}  Bxc4 {[%clk 0:00:01]} 45. a5 {[%clk 0:00:00]}  Ba6 {[%clk 0:00:01]} 0-1


[Site "https://www.chess.com"]

[Event "Titled Tuesday Blitz June 20 Late 2023"]
[White "Janaszak, Dawid"]
[Black "Ai, Evan"]
[WhiteFideId "1119206"]
[BlackFideId "2094770"]
[WhiteElo "2220"]
[BlackElo "1963"]
[Result "1-0"]
[Round "10"]
[TimeControl "180+2"]
[Date "2023.06.20"]
[WhiteClock "0:00:36"]
[BlackClock "0:00:06"]
[Board "69"]

1. d4 {[%clk 0:03:00]}  Nf6 {[%clk 0:02:58]} 2. c4 {[%clk 0:02:58]}  e6 {[%clk 0:02:59]} 3. g4 {[%clk 0:02:56]}  Nxg4 {[%clk 0:02:58]} 4. e4 {[%clk 0:02:54]}  Qh4 {[%clk 0:02:55]} 5. Qe2 {[%clk 0:02:45]}  Nc6 {[%clk 0:02:54]} 6. Nf3 {[%clk 0:02:44]}  Qf6 {[%clk 0:02:19]} 7. e5 {[%clk 0:02:41]}  Qf5 {[%clk 0:02:11]} 8. Bh3 {[%clk 0:02:21]}  Bb4+ {[%clk 0:02:05]} 9. Nc3 {[%clk 0:02:20]}  h5 {[%clk 0:02:01]} 10. Bd2 {[%clk 0:02:12]}  b6 {[%clk 0:01:57]} 11. d5 {[%clk 0:02:00]}  Ncxe5 {[%clk 0:01:54]} 12. Nxe5 {[%clk 0:02:00]}  Qxe5 {[%clk 0:01:55]} 13. Bxg4 {[%clk 0:02:00]}  Qxe2+ {[%clk 0:01:39]} 14. Bxe2 {[%clk 0:02:00]}  Bb7 {[%clk 0:01:38]} 15. O-O-O {[%clk 0:01:55]}  O-O-O {[%clk 0:01:36]} 16. Bf3 {[%clk 0:01:52]}  f6 {[%clk 0:01:27]} 17. h4 {[%clk 0:01:48]}  Rde8 {[%clk 0:01:20]} 18. Rhg1 {[%clk 0:01:45]}  g5 {[%clk 0:00:45]} 19. Ne4 {[%clk 0:01:30]}  Bxd2+ {[%clk 0:00:42]} 20. Rxd2 {[%clk 0:01:30]}  g4 {[%clk 0:00:41]} 21. Bg2 {[%clk 0:01:26]}  f5 {[%clk 0:00:42]} 22. Ng5 {[%clk 0:01:18]}  e5 {[%clk 0:00:40]} 23. d6 {[%clk 0:01:14]}  Bxg2 {[%clk 0:00:38]} 24. Rxg2 {[%clk 0:01:15]}  f4 {[%clk 0:00:38]} 25. Ne4 {[%clk 0:01:09]}  f3 {[%clk 0:00:13]} 26. Rg1 {[%clk 0:01:09]}  Rhf8 {[%clk 0:00:13]} 27. Rgd1 {[%clk 0:01:09]}  c6 {[%clk 0:00:13]} 28. Kc2 {[%clk 0:01:02]}  Rf4 {[%clk 0:00:13]} 29. Re1 {[%clk 0:01:02]}  Rg8 {[%clk 0:00:11]} 30. Ng3 {[%clk 0:01:00]}  Rxc4+ {[%clk 0:00:11]} 31. Kd3 {[%clk 0:00:59]}  Rd4+ {[%clk 0:00:11]} 32. Kc2 {[%clk 0:00:59]}  Rc4+ {[%clk 0:00:08]} 33. Kd1 {[%clk 0:01:00]}  Re8 {[%clk 0:00:07]} 34. Re4 {[%clk 0:00:53]}  Rc5 {[%clk 0:00:07]} 35. Nxh5 {[%clk 0:00:51]}  Rd5 {[%clk 0:00:07]} 36. Ng3 {[%clk 0:00:44]}  Rh8 {[%clk 0:00:06]} 37. h5 {[%clk 0:00:44]}  Kb7 {[%clk 0:00:04]} 38. Rxg4 {[%clk 0:00:41]}  Rxd2+ {[%clk 0:00:01]} 39. Kxd2 {[%clk 0:00:42]}  c5 {[%clk 0:00:02]} 40. Rg6 {[%clk 0:00:37]}  Kc6 {[%clk 0:00:03]} 41. Ke3 {[%clk 0:00:37]}  Kd5 {[%clk 0:00:03]} 42. Ne4 {[%clk 0:00:36]}  Rxh5 {[%clk 0:00:03]} 43. Nf6+ {[%clk 0:00:37]}  Ke6 {[%clk 0:00:03]} 44. Nxh5+ {[%clk 0:00:37]}  Kf5 {[%clk 0:00:04]} 45. Rg7 {[%clk 0:00:37]}  Ke6 {[%clk 0:00:04]} 46. Rg6+ {[%clk 0:00:36]}  Kd5 {[%clk 0:00:05]} 47. Rh6 {[%clk 0:00:36]}  b5 {[%clk 0:00:04]} 48. b3 {[%clk 0:00:36]}  b4 {[%clk 0:00:05]} 49. Nf6+ {[%clk 0:00:35]}  Kxd6 {[%clk 0:00:05]} 50. Ne4+ {[%clk 0:00:36]}  Kd5 {[%clk 0:00:06]} 51. Rd6# {[%clk 0:00:36]} 1-0


[Site "https://www.chess.com"]

[Event "Titled Tuesday Blitz June 20 Late 2023"]
[White "brm72"]
[Black "KorolDimitriy75"]
[WhiteElo "2552"]
[BlackElo "2424"]
[Result "0-1"]
[Round "10"]
[TimeControl "180+2"]
[Date "2023.06.20"]
[WhiteClock "0:00:50"]
[BlackClock "0:00:06"]
[Board "70"]

1. e4 {[%clk 0:03:00]}  c5 {[%clk 0:02:59]} 2. Nf3 {[%clk 0:03:00]}  d6 {[%clk 0:02:59]} 3. d4 {[%clk 0:03:01]}  cxd4 {[%clk 0:03:00]} 4. Nxd4 {[%clk 0:03:01]}  Nf6 {[%clk 0:03:01]} 5. Nc3 {[%clk 0:03:02]}  g6 {[%clk 0:03:01]} 6. f3 {[%clk 0:03:02]}  Bg7 {[%clk 0:03:01]} 7. Be3 {[%clk 0:03:03]}  O-O {[%clk 0:03:02]} 8. Qd2 {[%clk 0:03:03]}  Nc6 {[%clk 0:03:02]} 9. O-O-O {[%clk 0:03:04]}  d5 {[%clk 0:03:02]} 10. Qe1 {[%clk 0:03:05]}  e5 {[%clk 0:03:01]} 11. Nxc6 {[%clk 0:03:05]}  bxc6 {[%clk 0:03:02]} 12. exd5 {[%clk 0:03:06]}  cxd5 {[%clk 0:03:03]} 13. Bg5 {[%clk 0:03:04]}  Be6 {[%clk 0:03:02]} 14. Bc4 {[%clk 0:03:00]}  h6 {[%clk 0:02:57]} 15. Bxf6 {[%clk 0:02:42]}  Qxf6 {[%clk 0:02:58]} 16. Bxd5 {[%clk 0:02:38]}  Rab8 {[%clk 0:02:54]} 17. Bb3 {[%clk 0:02:30]}  Rfc8 {[%clk 0:02:16]} 18. Kb1 {[%clk 0:02:29]}  e4 {[%clk 0:01:29]} 19. fxe4 {[%clk 0:02:21]}  Qe5 {[%clk 0:01:15]} 20. Rd3 {[%clk 0:02:13]}  a5 {[%clk 0:01:14]} 21. Qg3 {[%clk 0:02:11]}  Qxg3 {[%clk 0:00:58]} 22. Rxg3 {[%clk 0:02:08]}  Bxc3 {[%clk 0:00:53]} 23. Rxc3 {[%clk 0:02:08]}  Rxc3 {[%clk 0:00:53]} 24. bxc3 {[%clk 0:02:09]}  a4 {[%clk 0:00:53]} 25. Kb2 {[%clk 0:02:09]}  Kg7 {[%clk 0:00:47]} 26. e5 {[%clk 0:02:02]}  Bd5 {[%clk 0:00:31]} 27. Rg1 {[%clk 0:01:53]}  axb3 {[%clk 0:00:25]} 28. cxb3 {[%clk 0:01:54]}  Re8 {[%clk 0:00:22]} 29. c4 {[%clk 0:01:49]}  Ba8 {[%clk 0:00:20]} 30. Re1 {[%clk 0:01:46]}  Bxg2 {[%clk 0:00:19]} 31. b4 {[%clk 0:01:46]}  g5 {[%clk 0:00:17]} 32. a4 {[%clk 0:01:46]}  Kg6 {[%clk 0:00:18]} 33. b5 {[%clk 0:01:45]}  Kf5 {[%clk 0:00:16]} 34. Kc3 {[%clk 0:01:33]}  Rxe5 {[%clk 0:00:15]} 35. Rd1 {[%clk 0:01:34]}  g4 {[%clk 0:00:14]} 36. Kb4 {[%clk 0:01:32]}  Bf3 {[%clk 0:00:13]} 37. Rd8 {[%clk 0:01:28]}  h5 {[%clk 0:00:13]} 38. a5 {[%clk 0:01:27]}  h4 {[%clk 0:00:12]} 39. Rg8 {[%clk 0:01:25]}  Kf4 {[%clk 0:00:12]} 40. Rf8 {[%clk 0:01:23]}  f5 {[%clk 0:00:11]} 41. Rg8 {[%clk 0:01:23]}  g3 {[%clk 0:00:09]} 42. hxg3+ {[%clk 0:01:23]}  hxg3 {[%clk 0:00:10]} 43. a6 {[%clk 0:01:23]}  g2 {[%clk 0:00:09]} 44. b6 {[%clk 0:01:23]}  Bg4 {[%clk 0:00:09]} 45. b7 {[%clk 0:01:01]}  g1=Q {[%clk 0:00:09]} 46. b8=Q {[%clk 0:01:02]}  Qc5+ {[%clk 0:00:09]} 47. Ka4 {[%clk 0:00:56]}  Bd1+ {[%clk 0:00:06]} 48. Qb3 {[%clk 0:00:50]}  Qxc4+ {[%clk 0:00:06]} 0-1


[Site "https://www.chess.com"]

[Event "Titled Tuesday Blitz June 20 Late 2023"]
[White "Shapiro, Viktor"]
[Black "Carrasco Miranda, Andres"]
[WhiteFideId "4175700"]
[BlackFideId "3405990"]
[WhiteElo "2212"]
[BlackElo "2183"]
[Result "1-0"]
[Round "10"]
[TimeControl "180+2"]
[Date "2023.06.20"]
[WhiteClock "0:01:15"]
[BlackClock "0:00:05"]
[Board "71"]

1. Nf3 {[%clk 0:03:00]}  Nf6 {[%clk 0:02:56]} 2. g3 {[%clk 0:03:01]}  g6 {[%clk 0:02:56]} 3. Bg2 {[%clk 0:03:02]}  Bg7 {[%clk 0:02:55]} 4. O-O {[%clk 0:03:02]}  O-O {[%clk 0:02:55]} 5. d3 {[%clk 0:03:03]}  d5 {[%clk 0:02:55]} 6. Nbd2 {[%clk 0:03:02]}  Nc6 {[%clk 0:02:54]} 7. c4 {[%clk 0:03:02]}  d4 {[%clk 0:02:54]} 8. a3 {[%clk 0:03:02]}  a5 {[%clk 0:02:54]} 9. Rb1 {[%clk 0:03:01]}  a4 {[%clk 0:02:42]} 10. b4 {[%clk 0:03:02]}  axb3 {[%clk 0:02:43]} 11. Qxb3 {[%clk 0:03:02]}  e5 {[%clk 0:02:40]} 12. Ng5 {[%clk 0:02:59]}  Nd7 {[%clk 0:02:31]} 13. Nde4 {[%clk 0:02:50]}  h6 {[%clk 0:02:26]} 14. Nf3 {[%clk 0:02:49]}  f5 {[%clk 0:02:26]} 15. Ned2 {[%clk 0:02:44]}  Kh7 {[%clk 0:02:26]} 16. Qc2 {[%clk 0:02:42]}  Qe7 {[%clk 0:02:21]} 17. Nb3 {[%clk 0:02:40]}  e4 {[%clk 0:02:16]} 18. Nfd2 {[%clk 0:02:30]}  Nf6 {[%clk 0:02:03]} 19. dxe4 {[%clk 0:02:28]}  fxe4 {[%clk 0:02:01]} 20. Nxe4 {[%clk 0:02:27]}  Bf5 {[%clk 0:01:59]} 21. Nbd2 {[%clk 0:02:19]}  Rae8 {[%clk 0:01:49]} 22. f3 {[%clk 0:02:19]}  Nxe4 {[%clk 0:01:48]} 23. Nxe4 {[%clk 0:02:18]}  b6 {[%clk 0:01:34]} 24. Rb5 {[%clk 0:02:14]}  d3 {[%clk 0:01:27]} 25. Qxd3 {[%clk 0:02:14]}  Nd4 {[%clk 0:01:19]} 26. Rd5 {[%clk 0:02:11]}  Bxe4 {[%clk 0:01:16]} 27. fxe4 {[%clk 0:02:11]}  Rxf1+ {[%clk 0:01:14]} 28. Kxf1 {[%clk 0:02:11]}  c5 {[%clk 0:01:08]} 29. Bf4 {[%clk 0:02:03]}  g5 {[%clk 0:00:27]} 30. Bd6 {[%clk 0:01:54]}  Qf7+ {[%clk 0:00:23]} 31. Kg1 {[%clk 0:01:44]}  Ra8 {[%clk 0:00:15]} 32. e5+ {[%clk 0:01:43]}  Kh8 {[%clk 0:00:15]} 33. Be4 {[%clk 0:01:31]}  Rf8 {[%clk 0:00:14]} 34. Bxf8 {[%clk 0:01:29]}  Qxf8 {[%clk 0:00:15]} 35. e3 {[%clk 0:01:26]}  Nf3+ {[%clk 0:00:14]} 36. Bxf3 {[%clk 0:01:24]}  Qxf3 {[%clk 0:00:14]} 37. Rd8+ {[%clk 0:01:22]}  Bf8 {[%clk 0:00:15]} 38. e6 {[%clk 0:01:17]}  Kg7 {[%clk 0:00:05]} 39. Rd7+ {[%clk 0:01:15]} 1-0


[Site "https://www.chess.com"]

[Event "Titled Tuesday Blitz June 20 Late 2023"]
[White "Ismayil, Malak"]
[Black "Ladan, Nicholas"]
[WhiteFideId "13412604"]
[BlackFideId "30918855"]
[WhiteElo "1868"]
[BlackElo "2167"]
[Result "1-0"]
[Round "10"]
[TimeControl "180+2"]
[Date "2023.06.20"]
[WhiteClock "0:00:09"]
[BlackClock "0:00:00"]
[Board "72"]

1. e4 {[%clk 0:02:46]}  b6 {[%clk 0:03:00]} 2. d4 {[%clk 0:02:45]}  Bb7 {[%clk 0:03:00]} 3. Nc3 {[%clk 0:02:45]}  e6 {[%clk 0:02:58]} 4. Be3 {[%clk 0:02:44]}  Bb4 {[%clk 0:02:57]} 5. f3 {[%clk 0:02:44]}  Bxc3+ {[%clk 0:02:55]} 6. bxc3 {[%clk 0:02:45]}  d5 {[%clk 0:02:54]} 7. e5 {[%clk 0:02:41]}  Ne7 {[%clk 0:02:52]} 8. Bd3 {[%clk 0:02:40]}  Qc8 {[%clk 0:02:45]} 9. Nh3 {[%clk 0:02:40]}  Ba6 {[%clk 0:02:43]} 10. O-O {[%clk 0:02:38]}  Bxd3 {[%clk 0:02:42]} 11. cxd3 {[%clk 0:02:36]}  Qa6 {[%clk 0:02:40]} 12. Bg5 {[%clk 0:02:25]}  Nbc6 {[%clk 0:02:39]} 13. Kh1 {[%clk 0:02:23]}  h6 {[%clk 0:02:38]} 14. Bxe7 {[%clk 0:02:20]}  Nxe7 {[%clk 0:02:39]} 15. Nf2 {[%clk 0:02:17]}  h5 {[%clk 0:02:20]} 16. Qd2 {[%clk 0:02:15]}  Nf5 {[%clk 0:02:16]} 17. a4 {[%clk 0:02:09]}  Qa5 {[%clk 0:02:13]} 18. Qb2 {[%clk 0:02:03]}  c6 {[%clk 0:01:59]} 19. Rfe1 {[%clk 0:01:56]}  Rh6 {[%clk 0:01:54]} 20. Nh3 {[%clk 0:01:55]}  Kd7 {[%clk 0:01:44]} 21. Ng5 {[%clk 0:01:51]}  Rf8 {[%clk 0:01:35]} 22. Qa3 {[%clk 0:01:47]}  Ke8 {[%clk 0:01:31]} 23. Qb2 {[%clk 0:01:27]}  h4 {[%clk 0:01:18]} 24. Nh3 {[%clk 0:01:25]}  Rg8 {[%clk 0:01:08]} 25. f4 {[%clk 0:01:21]}  Rg6 {[%clk 0:01:01]} 26. c4 {[%clk 0:01:14]}  Rg4 {[%clk 0:00:57]} 27. Rac1 {[%clk 0:00:47]}  Rh8 {[%clk 0:00:45]} 28. c5 {[%clk 0:00:46]}  Kd7 {[%clk 0:00:37]} 29. Qf2 {[%clk 0:00:34]}  Rh6 {[%clk 0:00:28]} 30. Ng5 {[%clk 0:00:31]}  Rxg5 {[%clk 0:00:23]} 31. fxg5 {[%clk 0:00:30]}  Rg6 {[%clk 0:00:24]} 32. Qf4 {[%clk 0:00:26]}  Kc7 {[%clk 0:00:14]} 33. cxb6+ {[%clk 0:00:19]}  axb6 {[%clk 0:00:13]} 34. Ra1 {[%clk 0:00:11]}  Kb7 {[%clk 0:00:13]} 35. Reb1 {[%clk 0:00:11]}  Ka6 {[%clk 0:00:04]} 36. Rb3 {[%clk 0:00:11]}  h3 {[%clk 0:00:00]} 37. Rab1 {[%clk 0:00:09]} 1-0


[Site "https://www.chess.com"]

[Event "Titled Tuesday Blitz June 20 Late 2023"]
[White "Bueno, Alfeu Junior Varela"]
[Black "whiteglovethief"]
[WhiteFideId "2108879"]
[WhiteElo "2175"]
[BlackElo "2504"]
[Result "0-1"]
[Round "10"]
[TimeControl "180+2"]
[Date "2023.06.20"]
[WhiteClock "0:00:00"]
[BlackClock "0:00:35"]
[Board "73"]

1. e4 {[%clk 0:02:59]}  e6 {[%clk 0:03:00]} 2. d4 {[%clk 0:02:59]}  d5 {[%clk 0:03:00]} 3. Nd2 {[%clk 0:03:00]}  c5 {[%clk 0:03:00]} 4. exd5 {[%clk 0:03:00]}  exd5 {[%clk 0:03:01]} 5. Bb5+ {[%clk 0:02:59]}  Nc6 {[%clk 0:03:02]} 6. Ngf3 {[%clk 0:02:57]}  Bd6 {[%clk 0:03:02]} 7. O-O {[%clk 0:02:54]}  Ne7 {[%clk 0:03:02]} 8. dxc5 {[%clk 0:02:53]}  Bxc5 {[%clk 0:03:03]} 9. Nb3 {[%clk 0:02:53]}  Bd6 {[%clk 0:03:03]} 10. c4 {[%clk 0:02:49]}  O-O {[%clk 0:02:58]} 11. Bg5 {[%clk 0:02:43]}  dxc4 {[%clk 0:02:52]} 12. Bxc4 {[%clk 0:02:41]}  Bg4 {[%clk 0:02:50]} 13. h3 {[%clk 0:02:36]}  Bh5 {[%clk 0:02:47]} 14. Rc1 {[%clk 0:02:08]}  h6 {[%clk 0:02:43]} 15. Bh4 {[%clk 0:02:05]}  Qc7 {[%clk 0:02:31]} 16. Nbd4 {[%clk 0:01:58]}  Bxf3 {[%clk 0:02:15]} 17. Nxf3 {[%clk 0:01:49]}  Ng6 {[%clk 0:02:06]} 18. Qc2 {[%clk 0:01:24]}  Nxh4 {[%clk 0:01:50]} 19. Nxh4 {[%clk 0:01:25]}  Ne5 {[%clk 0:01:40]} 20. Bd5 {[%clk 0:01:02]}  Qe7 {[%clk 0:01:38]} 21. Nf5 {[%clk 0:00:58]}  Qf6 {[%clk 0:01:35]} 22. Rfd1 {[%clk 0:00:41]}  Rad8 {[%clk 0:01:28]} 23. Bxb7 {[%clk 0:00:33]}  g6 {[%clk 0:01:28]} 24. Nxd6 {[%clk 0:00:33]}  Rxd6 {[%clk 0:01:27]} 25. Rxd6 {[%clk 0:00:32]}  Qxd6 {[%clk 0:01:28]} 26. Rd1 {[%clk 0:00:33]}  Qf6 {[%clk 0:01:27]} 27. Qa4 {[%clk 0:00:25]}  Qb6 {[%clk 0:01:09]} 28. Bd5 {[%clk 0:00:23]}  Qxb2 {[%clk 0:01:01]} 29. Qxa7 {[%clk 0:00:19]}  Rd8 {[%clk 0:01:01]} 30. Bxf7+ {[%clk 0:00:18]}  Nxf7 {[%clk 0:01:00]} 31. Rxd8+ {[%clk 0:00:17]}  Nxd8 {[%clk 0:01:01]} 32. Qd7 {[%clk 0:00:12]}  Nf7 {[%clk 0:00:55]} 33. a4 {[%clk 0:00:12]}  Qa1+ {[%clk 0:00:52]} 34. Kh2 {[%clk 0:00:11]}  Qe5+ {[%clk 0:00:53]} 35. g3 {[%clk 0:00:11]}  Qa5 {[%clk 0:00:49]} 36. Qc6 {[%clk 0:00:09]}  Kg7 {[%clk 0:00:48]} 37. Kg2 {[%clk 0:00:09]}  Qe5 {[%clk 0:00:44]} 38. h4 {[%clk 0:00:09]}  Nd6 {[%clk 0:00:44]} 39. Qc7+ {[%clk 0:00:07]}  Kf6 {[%clk 0:00:45]} 40. a5 {[%clk 0:00:07]}  Qe4+ {[%clk 0:00:43]} 41. Kh2 {[%clk 0:00:07]}  Qd4 {[%clk 0:00:41]} 42. Kg2 {[%clk 0:00:04]}  Ne4 {[%clk 0:00:38]} 43. Qf4+ {[%clk 0:00:04]}  Ke6 {[%clk 0:00:36]} 44. Qxh6 {[%clk 0:00:00]}  Qxf2+ {[%clk 0:00:35]} 0-1


[Site "https://www.chess.com"]